Cogmind - Beta 15 @@@ ROGUE MODE // 2025.07.05 @ 18:36:28 Player: Rockstar Result: Destroyed by H-61 Shepherd with Heavy Assault Cannon Performance ------------- Evolutions (2) 1000 Regions Visited (3) 600 Robots Destroyed (12) 60 Value Destroyed (508) 508 Prototype IDs (0) 0 Alien Tech Used (0) 0 Bonus (0) 0 TOTAL SCORE: 2168 Bonus ------- None Cogmind --------- Core Integrity 0/550 Matter 360/400 Energy 56/250 System Corruption 0% Temperature Cool (9) Movement Walking (190) Ox1 Location -8/Materials Parts ------- > --- POWER (1) -------- Ion Engine > --- PROPULSION (2) --- Aluminum Leg Aluminum Leg > --- UTILITY (6) ------ Small Storage Unit Medium Matter Pod Improved Signal Interpreter Field Recycling Unit > --- WEAPON (2) ------- Medium Laser > --- INVENTORY (8) ---- Gauss Rifle Peak State ------------ > --- POWER ------------ Light Nuclear Core > --- PROPULSION ------- Aluminum Leg Aluminum Leg > --- UTILITY ---------- Improved Heat Sink Small Storage Unit Improved Signal Interpreter Particle Charger Scrap Shield > --- WEAPON ----------- Particle Gun Subdweller Beam Cannon > --- INVENTORY -------- Ion Engine Aluminum Leg Aluminum Leg Aluminum Leg Improved Heat Sink Field Recycling Unit Medium Laser Battle Rifle [Rating: 24] Favorites ----------- Power Ion Engine Engine Ion Engine Power Core Light Nuclear Core Propulsion Aluminum Leg Leg Aluminum Leg Utility Small Storage Unit Device Particle Charger Storage Small Storage Unit Processor Improved Signal Interpreter Protection Scrap Shield Weapon Medium Laser Energy Gun Medium Laser Energy Cannon Subdweller Beam Cannon Ballistic Gun Battle Rifle Build | -11 -10 -10 -8 ------- Run | Yrd Mat Sub Mat Slots Evolved 4 | . . . 4 Power . | . . . . Propulsion . | . . . . Utility 4 | . . . 4 Weapon . | . . . . Parts Attached 25 | 4 2 3 16 Power 4 | 1 . . 3 Engine 3 | 1 . . 2 Core 1 | . . . 1 Reactor . | . . . . Propulsion 6 | 2 . 1 3 Treads . | . . . . Leg 6 | 2 . 1 3 Wheel . | . . . . Hover . | . . . . Flight . | . . . . Utility 10 | 1 . 1 8 Device 6 | . . 1 5 Storage 2 | 1 . . 1 Processor 1 | . . . 1 Hackware . | . . . . Protection 1 | . . . 1 Artifact . | . . . . Weapon 5 | . 2 1 2 Energy Gun 2 | . 1 . 1 Energy Cannon 1 | . . . 1 Ballistic Gun 2 | . 1 1 . Ballistic Cannon . | . . . . Launcher . | . . . . Special Weapon . | . . . . Impact Weapon . | . . . . Slashing Weapon . | . . . . Piercing Weapon . | . . . . Special Melee Weapon . | . . . . Unidentified Prototypes . | . . . . Parts Lost 10 | . . . 10 Power 2 | . . . 2 Propulsion 3 | . . . 3 Utility 4 | . . . 4 Weapon 1 | . . . 1 Highest Loss Streak 5 | . . . 5 To Critical Strikes . | . . . . Average Backups 6 | 2 4 5 7 Power . | . 1 1 . Propulsion 2 | . 2 3 2 Utility . | . . . 1 Weapon 1 | 1 1 1 1 Tool/Special . | . . . . Unused Backups 3 | . . . 3 Power . | . . . . Propulsion 1 | . . . 1 Utility . | . . . . Weapon 2 | . . . 2 Tool/Special . | . . . . Average Slot Usage (%) 87 | . 84 98 81 Engine 9 | . 14 14 4 Core 2 | . . . 4 Leg 22 | . 28 28 16 Device 11 | . . 12 15 Storage 13 | . 14 14 12 Processor 3 | . . . 6 Protection 2 | . . . 5 Energy Gun 10 | . 14 14 7 Energy Cannon 3 | . . . 6 Ballistic Gun 8 | . 13 14 2 Peak Build Rating 24 | 4 6 10 24 Average Rating 13 | 3 5 8 19 On Entrance 5 | . 4 6 10 Naked Turns . | . . . . Heaviest Build 49 | 10 13 16 49 Greatest Support 20 | 20 20 20 20 Greatest Overweight (x) 6 | 1 . . 6 Average Overweight (x) . | . . . 1 Largest Inventory Capacity 8 | 8 8 8 8 Average Capacity 7 | 7 8 8 8 Most Carried 8 | 4 5 8 8 Average Carried 6 | 2 4 6 7 Final Capacity 8 | 8 8 8 8 Final Carried 8 | 4 5 8 1 Class Distribution -------------------- 65% | Mutant 34% | Scavenger-Mutant Dominant Class ---------------- Mutant | -10/Materials Mutant | -10/Subcaves Scavenger-Mutant | -8/Materials Resources | -11 -10 -10 -8 ----------- Run | Yrd Mat Sub Mat Matter Collected 639 | 240 20 53 326 Remotely . | . . . . Salvage Created 607 | . . 120 487 Parts 29 | . . 4 25 Haulers Intercepted . | . . . . Recyclers Shooed 1 | . . . 1 Parts Field Recycled 1 | . . . 1 Retrieved Matter 3 | . . . 3 Parts Self-Destructed 9 | . . 9 . Prevented . | . . . . Kills | -11 -10 -10 -8 ------- Run | Yrd Mat Sub Mat Combat Hostiles Destroyed 10 | . . 2 8 Guns 6 | . . 2 4 Cannons 4 | . . . 4 Classes Destroyed 4 | . . 1 3 Recycler 2 | . . . 2 Grunt 6 | . . . 6 Specialist 2 | . . . 2 Subdweller 2 | . . 2 . Best Kill Streak 3 | . . 1 3 Combat Bots Only 2 | . . 1 2 Max Kills in Single Turn 1 | . . 1 1 Gunslinging . | . . . . Exploded . | . . . . Melee . | . . . . Uniques/NPCs Destroyed . | . . . . Combat | -11 -10 -10 -8 -------- Run | Yrd Mat Sub Mat Hostile Shots Fired 126 | . . 4 122 Missed 33 | . . 1 32 Hits 93 | . . 3 90 Melee 3 | . . . 3 Projectile 90 | . . 3 87 Critical Strikes 3 | . . . 3 Damage Taken 1808 | . . 85 1723 Core 567 | . . . 567 Absorbed by Shields . | . . . . Regen/Repaired (Parts) 47 | . . . 47 Core Remaining (%) 100 | 100 . 100 . Volleys Fired 55 | . . 12 43 Largest 2 | . . 2 2 Hottest 145 | . . 75 145 Shots Fired 103 | . . 24 79 Gun 82 | . . 24 58 Cannon 21 | . . . 21 Launcher . | . . . . Special . | . . . . Kinetic 26 | . . 12 14 Thermal 77 | . . 12 65 Explosive . | . . . . Electromagnetic . | . . . . Robot Hit Streak 13 | . . 11 13 Robot Miss Streak 3 | . . 1 3 Penetration Max . | . . . . Secondary Targets 1 | . . . 1 Max Gunslinging Chain 1 | . . . 1 Shots Hit Robots 63 | . . 13 50 Core Hits 23 | . . 5 18 Critical Kills . | . . . . Critical Parts Destroyed . | . . . . Critical Strikes 2 | . . . 2 Burn 2 | . . . 2 Melee Attacks . | . . . . Impact . | . . . . Slashing . | . . . . Piercing . | . . . . Sneak Attacks . | . . . . Combat Hostiles . | . . . . Follow-up Attacks . | . . . . Damage Inflicted 1269 | . . 173 1096 Guns 882 | . . 173 709 Cannons 387 | . . . 387 Explosions . | . . . . Melee . | . . . . Ramming . | . . . . Kinetic 225 | . . 87 138 Thermal 1044 | . . 86 958 Explosive . | . . . . Electromagnetic . | . . . . Impact . | . . . . Slashing . | . . . . Piercing . | . . . . Highest Corruption . | . . . . Average Corruption . | . . . . Corruption Purged . | . . . . Corruption Blocked . | . . . . Overload Shots . | . . . . Overflow Damage . | . . . . Projectiles . | . . . . Explosions . | . . . . Melee . | . . . . Knockbacks . | . . . . Impact . | . . . . Kinetic . | . . . . Secondary . | . . . . Self-Inflicted Damage . | . . . . Shots . | . . . . Rammed . | . . . . Targets Rammed . | . . . . Kicked . | . . . . Crushed . | . . . . Highest Temperature 551 | . . 5 551 Average Temperature 131 | . . 5 132 Received Heat Transfer 591 | . . 6 585 Effects 5 | . . . 5 Shutdowns 2 | . . . 2 Matter Decay 2 | . . . 2 Damage (minor) 1 | . . . 1 Siege Activations . | . . . . Martial Activations . | . . . . Shielding Activations . | . . . . Robots Disrupted . | . . . . Combat Hostiles . | . . . . Robots Corrupted . | . . . . Combat Hostiles . | . . . . Parts Fried . | . . . . Impact Corruptions . | . . . . Robots Melted . | . . . . Combat Hostiles . | . . . . Parts Melted 6 | . . 1 5 Heat Transferred 2109 | . . 259 1850 Parts Sabotaged . | . . . . Parts Stolen . | . . . . Parts Stripped . | . . . . Power Chain Reactions . | . . . . Alert | -11 -10 -10 -8 ------- Run | Yrd Mat Sub Mat Maximum Alert Level . | . . . . Low Security (%) 100 | 100 100 . 100 Level 1 . | . . . . Level 2 . | . . . . Level 3 . | . . . . Level 4 . | . . . . Level 5 . | . . . . High Security . | . . . . Max Security . | . . . . Peak Influence 54 | . 12 . 54 Initial . | . . . . Average 7 | . . . 10 Influence Increases 225 | . 12 . 213 Destroy 0b10 Robot/C 160 | . . . 160 Destroy 0b10 Robot/NC 10 | . . . 10 Destroy Leader 20 | . . . 20 Successful Hack 12 | . 12 . . Disable Machine 15 | . . . 15 Destroy Structure 8 | . . . 8 Influence Decreases 225 | . 12 . 213 Time Decay 168 | . 12 . 156 Lost Part 57 | . . . 57 Squads Dispatched 2 | . . . 2 Investigation 1 | . . . 1 Extermination . | . . . . Reinforcement 1 | . . . 1 Assault . | . . . . Garrison . | . . . . Intercept . | . . . . Searches Triggered . | . . . . Construction Impeded . | . . . . Haulers Reinforced . | . . . . Active Scanning Responses . | . . . . Cargo Convoy Interrupts . | . . . . Stealth | -11 -10 -10 -8 --------- Run | Yrd Mat Sub Mat Distress Signals 3 | . 1 . 2 Communications Jammed . | . . . . Distress Signals . | . . . . Times Spotted 26 | . 4 4 18 Peak Tracking Total 8 | . 4 1 8 Tactical Retreats . | . . . . Traps | -11 -10 -10 -8 ------- Run | Yrd Mat Sub Mat Traps Triggered . | . . . . Indirectly . | . . . . Trap Hack Attempts . | . . . . Triggered . | . . . . Disarmed . | . . . . Reprogrammed . | . . . . Reused . | . . . . Traps Extracted . | . . . . Installed . | . . . . Triggered . | . . . . Most Traps Carried 1 | . . 1 . Machines | -11 -10 -10 -8 ---------- Run | Yrd Mat Sub Mat Machines Disabled 1 | . . . 1 Max in Single Turn 1 | . . . 1 Machines Repaired . | . . . . Machines Dismantled . | . . . . Machines Sabotaged . | . . . . Overloaded Fab Kills . | . . . . Hacking | -11 -10 -10 -8 --------- Run | Yrd Mat Sub Mat Machines Accessed 2 | . 1 . 1 Terminals 1 | . 1 . . Fabricators . | . . . . Repair Stations 1 | . . . 1 Recycling Units . | . . . . Scanalyzers . | . . . . Garrison Access . | . . . . Total Hacks 7 | . 4 . 3 Successful 6 | . 3 . 3 Failed 1 | . 1 . . Catastrophic . | . . . . Database Lockouts . | . . . . Manual 1 | . 1 . . Terminals 4 | . 4 . . Fabricators . | . . . . Repair Stations 3 | . . . 3 Recycling Units . | . . . . Scanalyzers . | . . . . Garrison Access . | . . . . Terminal Hacks 3 | . 3 . . Record 1 | . 1 . . Branch Access Points 1 | . 1 . . Locate Traps 1 | . 1 . . Fabricator Hacks . | . . . . Repair Station Hacks 3 | . . . 3 Scan Component 2 | . . . 2 Repair 1 | . . . 1 Recycling Unit Hacks . | . . . . Scanalyzer . | . . . . Garrison Access Hacks . | . . . . Unauthorized Hacks . | . . . . Terminals . | . . . . Fabricators . | . . . . Repair Stations . | . . . . Recycling Units . | . . . . Scanalyzers . | . . . . Garrison Access . | . . . . Data Cores Recovered . | . . . . Used . | . . . . Hacking Detections 2 | . 1 . 1 Full Trace Events 2 | . 1 . 1 Feedback Events . | . . . . Feedback Blocked . | . . . . Robot Schematics Acquired . | . . . . Robots Built . | . . . . Authchips . | . . . . Time . | . . . . Total Robot Build Rating . | . . . . Part Schematics Acquired . | . . . . Parts Built . | . . . . Authchips . | . . . . Time . | . . . . Total Part Build Rating . | . . . . Parts Repaired 1 | . . . 1 Time 26 | . . . 26 Parts Recycled . | . . . . Recycled Matter . | . . . . Retrieved Matter . | . . . . Retrieved Components . | . . . . Parts Scanalyzed . | . . . . Part Schematics Acquired . | . . . . Parts Damaged . | . . . . Bothacking | -11 -10 -10 -8 ------------ Run | Yrd Mat Sub Mat Used RIF Installer . | . . . . Robots Hacked . | . . . . Non-combat . | . . . . Combat . | . . . . Robot Hacks Applied . | . . . . Relay Couplers Released . | . . . . Fabnet Peak Effective % . | . . . . Robots Rewired . | . . . . Allies Hacked . | . . . . Hacks Repelled . | . . . . Allies | -11 -10 -10 -8 -------- Run | Yrd Mat Sub Mat Total Allies . | . . . . Largest Group . | . . . . Highest-Rated Group . | . . . . Highest-Rated Ally . | . . . . Total Orders . | . . . . Ally Attacks . | . . . . Total Damage . | . . . . Kills . | . . . . Allies Corrupted . | . . . . Allies Melted . | . . . . Intel | -11 -10 -10 -8 ------- Run | Yrd Mat Sub Mat Active Infowar (turns) 371 | . . 353 18 Optics 371 | . . 353 18 Robot Analysis Total . | . . . . Derelict Logs Recovered . | . . . . Drone Launches . | . . . . Drone Recoveries . | . . . . Exploration | -11 -10 -10 -8 ------------- Run | Yrd Mat Sub Mat Turns Passed 1200 | 57 190 375 578 Spaces Moved 537 | 42 90 249 156 Core 7 | 6 . . 1 Treads . | . . . . Legs 530 | 36 90 249 155 Wheels . | . . . . Hover . | . . . . Flight . | . . . . Fastest Speed 50 | 50 120 120 120 Average Speed 153 | 113 120 120 238 Slowest Speed 350 | 120 120 120 350 Overloaded Moves . | . . . . Propulsion Burnouts . | . . . . Robots Hopped . | . . . . Potential Cave-ins . | . . . . Cave-ins Triggered . | . . . . Exploration Rate (%) 17 | 3 29 17 20 Regions Visited 3 Branch Regions 1 Pre-discovered Areas . | . . . . Known Exits Taken . | . . . . Unknown Exits Taken 3 | 1 1 1 . Scrap Searched . | . . . . Spaces Dug . | . . . . Terrain Destroyed 8 | . . . 8 Melee . | . . . . Projectile 8 | . . . 8 AOE . | . . . . Terrain Rammed . | . . . . Walls Destroyed . | . . . . Machines Disabled . | . . . . Actions | -11 -10 -10 -8 --------- Run | Yrd Mat Sub Mat Total 806 | 49 172 302 283 Wait 155 | . 78 34 43 Move 534 | 41 89 248 156 Hop . | . . . . Pick Up 15 | 4 3 3 5 Fast Attach 10 | 4 . 1 5 Attach 12 | . 2 . 10 Detach 4 | . . . 4 Swap 11 | . . 2 9 Drop 10 | . . 2 8 Fire 55 | . . 12 43 Melee . | . . . . Ram . | . . . . Kick . | . . . . Crush . | . . . . Escape Stasis . | . . . . Rewire . | . . . . Trap . | . . . . Miscellaneous . | . . . . Route ------- -11/Scrapyard -10/Materials (discovered 4 exits: [*Mat] / Min x2 / [*Sub]) -10/Subcaves (discovered 2 exits: *Mat / [Scr]) -8/Materials History --------- Turn | Location | Event 26 | -11/Scrapyard | Discovered new exit (range 16) 58 | -11/Scrapyard | Entered Materials 59 | -10/Materials | Met a group of wandering Federalists 122 | -10/Materials | Discovered new exit (range 15) 175 | -10/Materials | Identified exit to Mines 246 | -10/Materials | Discovered new exit (range 3) 248 | -10/Materials | Entered Subcaves 248 | -10/Subcaves | Accompanied by 4 allies 249 | -10/Subcaves | Continued accompanying wandering Federalists (4) 249 | -10/Subcaves | Approached by a straggling Scientist 259 | -10/Subcaves | A swath of the cavern ceiling suddenly collapsed 310 | -10/Subcaves | Build established: Mutant 311 | -10/Subcaves | A swath of the cavern ceiling suddenly collapsed 340 | -10/Subcaves | Shifting Twisted Machinery released Battle Rifle 341 | -10/Subcaves | Shifting Twisted Machinery released Piercing Trap 574 | -10/Subcaves | Discovered new exit (range 6) 623 | -10/Subcaves | Entered Materials 623 | -8/Materials | Evolved 4 slots: Utility x4 703 | -8/Materials | Repaired Aluminum Leg 1087 | -8/Materials | Build established: Scavenger-Mutant 1139 | -8/Materials | Lost 5 parts (1p2n1u1w) 1189 | -8/Materials | Core integrity fell below 50% 1198 | -8/Materials | Core integrity fell below 20% 1201 | -8/Materials | Destroyed by H-61 Shepherd with Heavy Assault Cannon Last Messages --------------- R-06 Scavenger collects Broken Sub. Beam Cannon. R-06 Scavenger collects Lgt. Ion Engine. R-06 Scavenger collects Core Analyzer. Acquired 84 matter. Acquired Gauss Rifle. Acquired Imp. Cooling System. Dropped Imp. Heat Sink. Dropped Particle Gun. Acquired 10 matter. K-01 Serf collects debris. Imp. Heat Sink destroyed. Critical hit (Blast). L-31 Rogue knocked back. Penetrated by Slug. Aluminum Leg destroyed. W-25 Informer sends out distress signal. Imp. Cooling System destroyed. Imp. Deuterium Engine destroyed. Slug penetrates Wall. K-01 Serf knocked back. Map ----- +----------------------------------------------------+ | ?????????????????????????????????????????????????? | | ?????????????????????????????????????????????????? | | ?????????????????????????????????????????????????? | | ????????? ?????????????????????????????????????? | | ???????? ?????????????????????????????????????? | | ???????? ?????????????????????????????????????? | | ???????? ?????????????????????????????????????? | | ???????? ?????????????????????????????????????? | | ????##### ?????????????????????????????????????? | | ????#!! ?????????????????????????????????????? | | ????#!! #????????????????????????????????????? | | ?????[[ +????????????????????????????????????? | | ??????[ #????????????????????????????????????? | | ??????? #????????????????????????????????????? | | ???????? #????????????????????????????????????? | | ????????# #????????????????????????????????????? | | ?#####??# #????????????????????????????????????? | | ? ?# #????????????????????????????????????? | | ?? # ###############??????????????????????? | | ??? """ # %![ #??????????????????????? | | ??? """ + ! #??????????????????????? | | ????????# =%% % g #??????????????????????? | | ????????# # ####g #??????????????????????? | | ????????# # #??# %%#??????????????????????? | | ????????# #! !#??# kl#??????????????????????? | | ????????# ##!!!!##??#% @#??????????????????????? | | ######### #######???# #??????????????????????? | | #?????????# #??????????????????????? | | #?????????# #??????????????????????? | | #???????? ??????????????????????? | | ?? ??????????????????????? | | h H ?????????????????????? | | w ?????????????????????? | | g## ^ #?????????????????????? | | ################### ####+###?????????????????????? | | #?????????????????#?#????????????????????????????? | | #????????????????????????????????????????????????? | | #????????????????????????????????????????????????? | | #????????????????????????????????????????????????? | | +????????????????????????????????????????????????? | | #????????????????????????????????????????????????? | | #????????????????????????????????????????????????? | | ?????????????????????????????????????????????????? | | ?????????????????????????????????????????????????? | | ?????????????????????????????????????????????????? | | ?????????????????????????????????????????????????? | | ?????????????????????????????????????????????????? | | ?????????????????????????????????????????????????? | | ?????????????????????????????????????????????????? | | ?????????????????????????????????????????????????? | +----------------------------------------------------+ Best States ------------- Heat Dissipation 72 Energy Generation 16 Energy Capacity 290 Matter Stores 400 Matter Capacity 400 Sight Range 21 Terrain Scan Density 10 Armor Coverage 800 Evasion (%) 55 Particle Charging 15 Item Schematics ----------------- None Robot Schematics ------------------ None Fabricated ------------ Nothing Repaired ---------- Aluminum Leg | 47% | -8/Materials Alien Tech Used ----------------- None Achievements -------------- None Challenges ------------ None Game ------ Seed SmallNovaNullifier Manual? 0 Play Time 00:16:41 Cumulative 35.8 hours Start 2025.07.05 @ 18:07:24 End 2025.07.05 @ 18:36:28 Sessions 2 Manual Loads 0 Difficulty Rogue Special Mode None Game No. 28 Rogue 25 Adventurer 1 Explorer 2 Win Type - Total 0 Types 0/0/0/0/0/0/0/0/0/0 Lore% 18 Gallery% 26 Achievement% 24 Wizard Run 0 Options --------- Layout 0 ASCII 0 Keyboard 0 Movement Mouse Keybinds 0 Fullscreen 2 Font 24/Smallcaps Map View 76x50 Zoom Use 0% Tactical HUD 0 Map Filters NONE Filters NONE Steam 1 RUN: ffdce046-521d-4b6c-9ce8-ec111dae995e